bitfinex/quotes_ETHUSD_20250110
["timestamp","ask_amount","ask_price","bid_price","bid_amount"]
[1736525829423,0.0075,3257.7,3256.4,0.62613242]
[1736525829637,4.04066254,3258.4,3256.0,0.8228]
[1736525829834,7.11014254,3257.9,3256.6,3.07067]
[1736525830333,0.015,3257.8,3256.6,3.07067]
[1736525830534,0.0075,3257.8,3256.8,3.07041]
[1736525830855,0.0075,3257.8,3256.6,3.07063]
[1736525831195,0.015,3257.8,3256.7,3.07057]
[1736525831340,0.0075,3257.6,3256.7,3.07057]
[1736525831772,0.0075,3257.6,3256.4,0.61727293]
[1736525831773,3.0,3257.6,3256.4,0.61727293]
[1736525831971,0.7854,3257.5,3255.6,0.7605]
[1736525832228,0.7854,3257.0,3255.1,0.7605]
[1736525832507,0.7854,3257.0,3255.7,0.63025455]
[1736525832679,0.0075,3256.6,3255.4,3.07173]
[1736525832881,0.0225,3256.3,3255.5,0.307173]
[1736525833185,0.0075,3255.8,3254.4,0.8021]
[1736525833811,0.0075,3255.8,3254.9,3.70228845]
[1736525833970,0.0075,3255.8,3254.9,0.63000845]
[1736525834170,0.015,3255.8,3254.4,0.8021]
[1736525834398,0.0075,3255.8,3255.1,3.07206]
[1736525834599,0.7848,3256.4,3255.2,0.83281828]
[1736525834803,0.7848,3256.4,3255.8,3.07142]
[1736525835109,0.0075,3256.3,3255.9,3.07132]
[1736525835420,0.7898,3257.3,3255.6,3.62679165]
[1736525835710,0.015,3257.2,3256.2,3.071]
[1736525835901,0.015,3257.2,3256.3,0.3071]
[1736525836396,0.0075,3256.8,3255.8,3.0714]
[1736525836567,0.7839,3256.7,3255.5,3.0]
[1736525836774,0.0075,3256.5,3255.5,3.07171]
[1736525836981,0.015,3256.5,3255.3,0.03071357]
[1736525837298,0.7764,3256.7,3255.5,0.60624514]
[1736525837497,0.7764,3256.7,3256.2,3.07105]
[1736525837700,0.7764,3256.7,3255.8,3.07144]
[1736525837874,0.7752,3257.7,3256.0,0.7597]
[1736525838073,0.015,3257.6,3256.5,0.62506919]
[1736525838289,0.0075,3257.4,3256.0,3.7597]
[1736525838487,0.0075,3257.4,3255.9,7.11193254]
[1736525838488,0.0225,3257.0,3255.5,0.8054]
[1736525838820,0.0225,3256.7,3255.6,3.07162]
[1736525839109,0.0075,3256.4,3255.4,3.39047536]
[1736525839309,0.0075,3256.4,3255.4,0.39047536]
[1736525839615,0.0225,3255.8,3254.3,0.8184]
[1736525839833,3.09413,3255.6,3254.4,3.07276]
[1736525840036,0.0225,3255.4,3254.4,3.07276]
[1736525840197,0.015,3255.4,3254.6,3.07249]
[1736525840621,0.0075,3255.4,3254.6,3.07249]
[1736525841133,0.0075,3255.4,3254.6,3.07257]
[1736525841334,0.0075,3255.4,3254.6,0.37185803]
[1736525841533,0.0075,3255.4,3254.6,3.07255]
[1736525841835,0.7845,3255.7,3254.4,0.61528807]
[1736525842038,3.85604,3255.7,3254.6,3.07251]
[1736525842338,0.0225,3255.6,3254.6,3.07251]
[1736525842937,0.0225,3255.6,3254.4,0.61528807]
[1736525842938,0.0225,3255.6,3254.7,3.07244]
[1736525843234,0.410344,3255.6,3254.7,3.07244]
[1736525843802,0.0225,3255.6,3254.7,3.07244]
[1736525844443,0.8325,3255.0,3253.7,2.1932916]
[1736525844641,0.0075,3254.5,3253.7,2.1932916]
[1736525844856,0.0075,3254.3,3253.5,0.307362]
[1736525845038,0.015,3254.1,3252.7,0.759]
[1736525845237,0.0075,3253.8,3252.9,3.07414]
[1736525845521,0.0075,3253.4,3253.0,0.62426933]
[1736525845824,0.83,3253.5,3253.1,3.10469131]
[1736525846040,0.83,3253.5,3253.2,3.07389]
[1736525846239,0.83,3253.5,3253.2,3.07386]
[1736525846439,0.83,3253.5,3253.0,0.62426933]
[1736525846639,0.0075,3253.4,3252.5,3.07448]
[1736525846825,0.0075,3253.4,3252.2,0.759]
[1736525846826,0.0075,3253.4,3252.8,3.07422]
[1736525847025,0.0225,3253.4,3252.7,0.618178]
[1736525847277,0.0075,3253.4,3252.7,0.618178]
[1736525847579,0.0075,3253.4,3252.9,3.07413]
[1736525847873,0.0075,3253.4,3252.7,0.618178]
[1736525848178,0.0075,3253.4,3253.0,3.07407]
[1736525848374,0.0075,3253.4,3252.8,3.07425]
[1736525848575,0.0075,3253.4,3252.7,0.618178]
[1736525848576,0.0075,3253.4,3252.7,3.692508]
[1736525848774,0.0075,3253.4,3252.7,4.0617588]
[1736525848948,0.0225,3253.4,3252.7,0.618178]
[1736525849151,0.0225,3253.4,3252.8,3.07424]
[1736525849372,0.83,3253.5,3252.7,0.618178]
[1736525849373,0.83,3253.5,3252.7,0.64891969]
[1736525849664,0.7902,3254.8,3253.1,0.8034]
[1736525849849,0.7902,3254.8,3254.0,3.07312]
[1736525850051,0.7902,3254.8,3254.1,0.33804159]
[1736525850241,0.7902,3254.8,3254.3,3.07277]
[1736525850641,0.7902,3254.8,3254.2,35.0]
[1736525850837,0.7902,3254.8,3254.4,3.07274]
[1736525851383,0.7902,3254.8,3254.2,3.0]
[1736525851680,0.7902,3254.8,3254.1,3.07304]
[1736525851866,0.0225,3254.7,3254.1,0.387644]
[1736525852070,0.0225,3254.7,3253.7,3.0]
[1736525852240,0.0225,3254.7,3253.9,3.07321]
[1736525852443,0.0225,3254.7,3253.9,0.61323062]
[1736525852757,0.0225,3254.7,3253.7,3.0]
[1736525852758,3.09498,3254.7,3253.7,3.07341]
[1736525853346,0.0225,3254.7,3253.7,3.07341]
[1736525853546,0.0225,3254.7,3253.7,3.380751]
[1736525853743,0.0225,3254.7,3253.8,3.07331]
[1736525854082,3.09499,3254.7,3253.6,3.07351]
[1736525854584,0.0075,3253.7,3252.9,3.07411]
[1736525854814,6.07288,3254.3,3253.3,3.07379]
[1736525855000,3.07239,3254.8,3253.3,3.07379]
[1736525855200,0.015,3254.1,3253.4,3.07362]
[1736525855402,0.015,3254.1,3252.9,0.92119575]
[1736525855403,0.0075,3254.0,3252.9,0.92119575]
[1736525855585,0.8527,3253.8,3252.9,3.68793475]
[1736525855790,0.8527,3253.8,3253.1,3.07397]
[1736525856021,0.8527,3253.8,3252.9,0.64452254]
[1736525856519,0.8527,3253.8,3252.9,0.61378475]
[1736525856880,3.92606,3253.8,3252.9,0.61378475]
[1736525857226,0.0075,3253.5,3252.3,0.318]
[1736525857403,0.0075,3253.1,3252.4,0.61562328]
[1736525857605,0.0225,3253.1,3252.4,0.61562328]
[1736525857918,0.0225,3253.1,3252.2,3.07482]
[1736525858116,0.0225,3253.1,3252.3,3.07469]
[1736525858321,0.0225,3253.1,3252.4,3.07464]
[1736525858692,0.0225,3253.1,3252.3,0.94521785]
[1736525858898,0.0225,3253.1,3252.3,0.91447355]
[1736525859215,0.0225,3253.1,3252.3,3.98921355]
[1736525859423,0.0225,3253.1,3252.4,3.07458]
[1736525859717,0.7642,3253.2,3252.8,3.07419]
[1736525860340,0.0225,3253.1,3252.4,0.39890536]
[1736525860643,0.0225,3253.1,3252.2,3.0748]
[1736525860940,0.0225,3253.1,3252.0,3.07499]
[1736525861142,0.8287,3252.7,3251.5,0.662559]
[1736525861343,0.015,3252.1,3251.2,3.07576]
[1736525861547,0.015,3252.1,3251.3,3.52690516]
[1736525861845,0.015,3252.1,3251.5,0.62615043]
[1736525863101,0.015,3252.1,3251.5,3.70164043]
[1736525863335,0.015,3252.1,3251.6,3.07533]
[1736525863702,0.8062,3252.2,3251.7,3.07527]
[1736525863906,0.8062,3252.2,3251.5,3.07546]
[1736525864107,0.0225,3252.1,3251.3,0.52690516]
[1736525864343,0.0225,3252.1,3251.4,3.07552]
[1736525864543,0.0225,3252.1,3251.2,3.07572]
[1736525864919,0.0225,3252.1,3251.3,3.07567]
[1736525865944,0.0225,3252.1,3251.1,2.1932916]
[1736525865945,0.0225,3252.1,3251.4,3.07553]
[1736525866105,0.0225,3252.1,3251.1,0.03075694]
[1736525866442,0.0225,3252.1,3251.6,3.07533]
[1736525867250,0.0225,3252.1,3251.0,0.62016506]
[1736525867418,0.0075,3252.1,3251.6,3.07538]
[1736525868144,0.0075,3252.1,3251.2,3.07578]
[1736525868348,0.0225,3252.1,3251.0,3.69609506]
[1736525868651,0.0225,3252.1,3251.0,0.98977457]
[1736525868809,0.0225,3252.1,3251.1,3.07582]
[1736525869629,0.0075,3252.1,3251.0,0.62016506]
[1736525869837,0.0075,3252.1,3251.2,3.07574]
[1736525870038,0.0075,3252.1,3251.3,3.10644377]
[1736525870253,0.8062,3252.2,3251.3,0.85295377]
[1736525870415,0.8062,3252.2,3250.9,4.85006254]
[1736525870619,0.0225,3252.1,3251.0,1.10905158]
[1736525870874,0.0225,3252.1,3251.0,0.62404533]
[1736525871078,0.0225,3252.1,3250.6,3.0]
[1736525871237,0.0075,3251.8,3250.8,3.0]
[1736525871424,0.0075,3251.6,3250.8,3.0]
[1736525872074,0.0075,3251.6,3251.0,3.07596]
[1736525872395,0.0075,3251.6,3251.1,0.3106717]
[1736525873771,0.0075,3251.8,3251.1,0.3106717]
[1736525873979,0.0075,3251.8,3251.1,3.07587]
[1736525874322,0.0075,3251.8,3250.9,0.61917387]
[1736525874520,0.0075,3251.5,3250.5,3.88582]
[1736525874744,0.8396,3251.4,3250.5,3.07642]
[1736525875056,0.8396,3251.4,3249.7,0.15507912]
[1736525875057,0.015,3250.8,3249.6,0.8152]
[1736525875357,3.0761,3250.9,3249.8,0.60814908]
[1736525875358,0.0075,3250.9,3249.8,0.60814908]
[1736525875583,0.015,3251.0,3249.8,0.60814908]
[1736525875783,0.8321,3251.2,3249.9,0.03076675]
[1736525876076,0.8321,3251.2,3249.9,3.0]
[1736525876280,0.015,3250.9,3250.0,0.66852491]
[1736525876688,0.015,3250.9,3250.0,3.07688]
[1736525876822,0.0075,3250.5,3249.3,3.07752]
[1736525877022,3.09145,3250.5,3249.5,3.07737]
[1736525877441,0.8252,3250.8,3249.4,0.60956568]
[1736525877442,0.8128,3250.2,3249.4,0.60956568]
[1736525877596,0.8128,3250.6,3249.7,3.0772]
[1736525877881,0.8128,3250.6,3250.1,3.07679]
[1736525878083,0.8128,3250.6,3249.9,3.07697]
[1736525878287,0.8128,3250.6,3249.8,3.31079698]
[1736525878288,0.8128,3250.6,3249.8,0.31079698]
[1736525878869,0.8128,3250.6,3250.0,3.07684]
[1736525879071,0.8128,3250.6,3249.7,0.03076681]
[1736525879324,0.8128,3250.6,3250.1,3.0768]
[1736525879818,0.8128,3250.6,3249.9,0.61823649]
[1736525879819,0.0225,3250.5,3249.9,0.61823649]
[1736525880389,0.8128,3250.6,3250.0,3.07688]
[1736525880669,0.015,3250.5,3250.1,0.36951165]
[1736525880867,0.015,3250.5,3249.9,0.64900675]
[1736525880868,0.015,3250.5,3249.9,0.61823649]
[1736525881682,0.015,3250.5,3249.7,3.07719]
[1736525882277,0.015,3250.5,3249.2,0.7923]
[1736525882278,3.09896,3250.5,3249.5,3.07736]
[1736525882812,0.015,3250.2,3248.8,3.0]
[1736525883113,0.015,3250.2,3249.1,0.61133433]
[1736525883114,0.0225,3250.2,3249.1,0.61133433]
[1736525883308,0.0225,3250.2,3249.4,3.07747]
[1736525883875,0.0225,3250.2,3249.1,3.68907433]
[1736525884221,0.0225,3250.2,3249.1,0.61133433]
[1736525884222,0.0075,3249.9,3249.1,0.61133433]
[1736525884396,0.7735,3249.7,3249.1,0.61133433]
[1736525884596,0.0075,3249.6,3249.1,0.98025976]
[1736525884975,0.015,3249.6,3248.8,3.07803]
[1736525885175,0.0075,3249.6,3249.0,0.61136769]
[1736525885380,0.0075,3249.6,3249.0,3.07779]
[1736525885580,0.0075,3249.6,3248.7,0.03077692]
[1736525885813,0.7735,3249.7,3248.9,0.6174068]
[1736525886011,0.8079,3250.4,3249.4,3.07744]
[1736525886233,0.0225,3250.3,3249.1,3.0]
[1736525886446,0.0225,3250.3,3249.2,3.68849437]
[1736525886637,0.0225,3250.2,3249.3,3.07755]
[1736525887980,0.015,3250.0,3249.2,0.61086437]
[1736525888281,0.015,3250.0,3249.1,3.07774]
[1736525888282,0.0075,3249.9,3249.1,3.07774]
[1736525888482,0.0075,3249.9,3248.9,0.6174068]
[1736525888721,0.0075,3249.7,3249.1,3.07769]
[1736525889017,0.8327,3251.2,3249.2,3.10836576]
[1736525889178,0.7724,3251.0,3248.9,0.6174068]
[1736525889378,0.7724,3251.0,3249.1,3.07775]
[1736525889379,0.0225,3250.2,3249.1,3.07775]
[1736525889580,0.0225,3250.2,3248.9,3.07793]
[1736525889581,0.015,3249.7,3248.9,3.07793]
[1736525889889,0.015,3249.5,3248.2,3.0786]
[1736525890079,0.015,3249.2,3248.1,0.8001]
[1736525890275,0.015,3249.2,3248.4,3.07842]
[1736525890803,0.015,3249.2,3248.0,3.07876]
[1736525891004,0.0075,3249.1,3248.3,0.60859463]
[1736525891184,0.0075,3248.9,3247.7,0.8001]
[1736525891383,0.0075,3248.9,3248.2,3.07855]
[1736525892300,0.0075,3248.9,3248.0,3.07876]
[1736525892540,3.07815,3248.7,3247.8,3.69612031]
[1736525892722,0.0075,3248.4,3247.8,3.69612031]
[1736525893419,0.0075,3248.4,3247.6,3.07914]
[1736525893745,0.0075,3248.4,3247.7,3.07904]
[1736525894344,0.0075,3248.4,3247.8,3.07897]
[1736525894555,0.7577,3248.5,3248.0,3.07873]
[1736525894851,0.7577,3248.5,3248.1,3.07869]
[1736525895227,0.7577,3248.5,3248.3,3.07851]
[1736525895864,0.7577,3248.5,3248.1,3.07872]
[1736525896162,0.7822,3249.1,3248.2,3.07862]
[1736525896460,3.687398,3250.2,3249.2,3.0776]
[1736525896461,0.7822,3250.1,3249.2,3.0776]
[1736525896665,0.7822,3250.1,3248.6,3.07824]
[1736525896666,0.7822,3250.1,3248.7,0.03077608]
[1736525896868,0.7822,3250.1,3249.5,3.07739]
[1736525897354,0.015,3250.0,3249.4,3.07742]
[1736525897551,0.015,3250.0,3249.2,3.0]
[1736525897718,0.015,3250.0,3248.6,0.7761]
[1736525897915,0.0075,3249.9,3249.1,3.07774]
[1736525898156,0.8012,3249.7,3248.9,3.07793]
[1736525898359,0.0075,3249.5,3248.7,3.07807]
[1736525898958,0.8012,3249.7,3248.8,0.03077976]
[1736525899157,0.8012,3249.7,3248.7,3.0]
[1736525899325,0.8012,3249.7,3249.3,3.07751]
[1736525899844,0.8012,3249.7,3249.4,3.07747]
[1736525900078,0.8012,3249.7,3249.4,3.385217]
[1736525900395,0.8012,3249.7,3249.4,0.307747]
[1736525900556,0.8012,3249.7,3249.2,3.0776]
[1736525900755,0.8012,3249.7,3249.3,3.07754]
[1736525902309,0.8012,3249.7,3249.4,3.07748]
[1736525902604,0.8149,3250.1,3249.4,0.03077393]
[1736525902895,0.8149,3250.1,3249.6,3.07722]
[1736525903260,0.8149,3250.1,3249.6,3.38801915]
[1736525903481,0.8074,3250.1,3249.6,0.31079915]
[1736525903679,0.8101,3250.5,3249.7,0.03076844]
[1736525903907,0.8101,3251.4,3249.8,4.31801453]
[1736525904110,0.8101,3251.4,3250.8,3.07615]
[1736525904295,0.8101,3251.4,3250.9,3.07598]
[1736525904725,0.0075,3251.3,3250.9,3.07598]
[1736525904926,0.0075,3251.3,3250.9,3.07606]
[1736525905286,0.8101,3252.6,3251.2,3.49511453]
[1736525905494,0.8101,3252.6,3251.0,0.03076]
[1736525905495,1.13192521,3253.0,3252.0,3.49511453]
[1736525905701,1.13192521,3253.0,3252.1,3.65102876]
[1736525905893,1.13192521,3253.0,3252.6,3.0744]
[1736525906128,0.8101,3253.0,3252.6,3.0744]
[1736525906306,0.8101,3253.0,3252.6,3.07437]
[1736525906722,0.8101,3253.0,3252.6,3.07438]
[1736525907127,0.7726,3253.4,3252.6,0.3105122]
[1736525907330,0.7726,3253.4,3253.0,3.07407]
[1736525907531,0.7726,3253.4,3253.1,3.07398]
[1736525907837,0.0075,3253.3,3252.7,3.07431]
[1736525908191,0.0075,3253.3,3252.5,3.07453]
[1736525908397,0.0075,3253.3,3252.6,3.07443]
[1736525909209,0.0075,3253.3,3252.6,3.44357108]
[1736525909623,0.7726,3253.4,3252.7,0.03074132]
[1736525909998,0.7726,3253.4,3253.1,3.0739]
[1736525911017,0.7726,3253.4,3253.2,3.07384]
[1736525911203,0.0075,3253.8,3253.2,3.07384]
[1736525912435,0.8069,3253.9,3253.3,3.0738]
[1736525912733,0.8069,3253.9,3253.4,3.07369]
[1736525913120,0.8069,3253.9,3253.5,3.0736]
[1736525913637,0.8069,3253.9,3253.3,3.07379]
[1736525913836,0.0075,3253.8,3253.1,3.69986262]
[1736525914137,0.015,3253.8,3252.8,3.07419]
[1736525914435,0.0075,3253.5,3252.5,0.60502338]
[1736525914635,0.0075,3253.3,3252.5,0.60502338]
[1736525914994,0.7905,3253.4,3252.7,3.0]
[1736525915200,0.0075,3253.3,3252.8,0.30307422]
[1736525915539,0.0075,3253.3,3252.5,3.67954338]
[1736525915734,0.0075,3253.3,3252.6,0.03074138]
[1736525915935,0.7905,3253.4,3252.9,3.07413]
[1736525916137,0.8217,3253.9,3253.0,0.03074136]
[1736525916343,0.8217,3253.9,3252.6,3.07444]
[1736525916528,0.8367,3253.5,3252.6,3.07444]
[1736525916915,1.227722,3253.5,3252.5,0.60502338]
[1736525917114,3.91031,3253.5,3252.5,0.60502338]
[1736525917334,0.8367,3253.5,3252.5,0.6357655]
[1736525917525,0.8367,3253.5,3252.7,3.07432]
[1736525917718,0.8367,3253.5,3253.0,3.07401]
[1736525917719,0.8217,3253.5,3253.0,3.07401]
[1736525918041,0.8094,3253.9,3252.8,0.8206]
[1736525918217,0.8094,3255.3,3253.9,3.07322]
[1736525918416,3.07221,3255.0,3253.9,3.07322]
[1736525918639,0.8094,3254.9,3254.0,3.07305]
[1736525918968,0.8094,3254.9,3253.6,3.92484029]
[1736525918969,0.8094,3254.9,3254.1,3.073]
[1736525919103,0.015,3254.8,3254.1,3.073]
[1736525919538,0.015,3254.8,3253.9,3.07322]
[1736525919866,0.704663,3254.8,3253.9,3.07322]
[1736525920500,0.015,3254.6,3253.2,3.87161]
[1736525920705,3.08039,3254.3,3253.2,3.07387]
[1736525920899,0.0075,3253.8,3252.9,0.69906]
[1736525921343,0.015,3253.8,3252.9,3.39116]
[1736525921548,0.015,3253.8,3252.9,4.01349522]
[1736525921700,0.0075,3253.7,3252.9,0.62233522]
[1736525921904,0.0075,3253.3,3252.5,3.07455]
[1736525922324,0.0075,3253.3,3252.6,3.07442]
[1736525922734,0.0075,3253.3,3252.7,3.10504209]
[1736525923345,0.0075,3252.9,3251.7,0.7866]
[1736525923543,0.0075,3252.9,3251.0,6.63853891]
[1736525923544,3.07438,3252.7,3251.0,6.63853891]
[1736525923749,3.08954,3252.6,3251.9,0.60854386]
[1736525924043,0.0075,3252.2,3251.9,0.60854386]
[1736525924243,0.7591,3252.1,3251.9,0.60854386]
[1736525925353,0.7591,3252.6,3251.9,0.60854386]
[1736525925854,3.07376,3253.4,3252.0,0.03074894]
[1736525926011,0.7591,3253.3,3252.4,3.07464]
[1736525926212,0.015,3253.2,3252.4,3.07464]
[1736525926745,0.0075,3253.1,3252.3,3.07473]
[1736525926948,0.0075,3253.1,3252.3,3.382203]
[1736525927122,0.015,3253.2,3252.4,0.03074456]
[1736525927645,3.08154,3253.1,3252.0,3.075]
[1736525927849,3.08915,3253.0,3252.0,3.075]
[1736525928034,3.08915,3253.0,3251.9,0.60854386]
[1736525928035,0.015,3252.8,3251.9,0.60854386]
[1736525928213,0.015,3252.6,3251.9,0.60854386]
[1736525928605,0.0075,3252.5,3251.9,0.60854386]
[1736525928815,0.0075,3252.2,3251.9,0.60854386]
[1736525929113,0.015,3252.2,3251.9,0.60854386]
[1736525929352,0.0075,3252.2,3251.9,0.60854386]
[1736525929906,0.0075,3252.3,3251.9,0.60854386]
[1736525930312,0.0075,3252.2,3250.6,3.7905]
[1736525930550,0.0075,3251.8,3250.6,4.1075]
[1736525930757,0.0075,3251.8,3251.1,3.0]
[1736525931052,0.0075,3251.8,3250.8,3.07616]
[1736525931053,3.08273,3251.8,3250.8,3.07616]
[1736525931211,3.08273,3251.8,3250.9,0.61122111]
[1736525931555,0.0075,3251.6,3250.8,3.07616]
[1736525931712,0.0075,3251.6,3250.8,3.494526]
[1736525932113,0.0075,3251.6,3250.8,4.10254442]
[1736525932350,0.0075,3251.6,3250.9,3.07604]
[1736525933660,0.0075,3251.6,3250.8,1.02638442]
[1736525933859,0.0075,3251.6,3250.8,0.60801842]
[1736525934464,0.0225,3251.5,3250.2,0.7672]
[1736525934664,0.7909,3251.3,3250.2,0.7672]
[1736525935163,0.7909,3251.3,3250.2,3.7672]
[1736525935340,0.7909,3251.3,3250.3,0.684397]
[1736525935543,0.7909,3251.3,3250.4,3.07647]
[1736525936272,0.7909,3251.3,3250.3,0.684397]
[1736525936273,0.0075,3251.0,3250.3,0.684397]
[1736525936431,0.0075,3251.0,3250.0,3.07689]
[1736525936762,0.0075,3251.0,3249.9,0.6111046]
[1736525936763,0.7519,3250.7,3249.9,0.6111046]
[1736525936949,0.7519,3251.8,3250.3,0.8183]
[1736525937149,0.7519,3251.8,3250.6,3.0]
[1736525937325,0.7519,3252.6,3252.0,3.075]
[1736525937524,0.7519,3252.6,3252.1,0.03074909]
[1736525937765,0.7519,3252.6,3251.7,3.80704492]
[1736525938062,3.07312,3254.1,3251.7,3.80704492]
[1736525938063,0.783,3252.9,3251.7,3.80704492]
[1736525938263,0.783,3252.9,3252.3,3.07467]
[1736525938421,0.783,3252.9,3251.8,3.317]
[1736525938626,0.783,3252.9,3252.5,3.07453]
[1736525939035,0.783,3252.9,3252.2,0.03074337]
[1736525939350,0.783,3252.9,3252.4,3.07463]
[1736525940140,0.0075,3252.8,3251.9,0.40933]
[1736525940468,0.0075,3252.8,3252.2,3.07478]
[1736525940837,0.0075,3252.8,3252.1,3.0]
[1736525941357,0.0075,3252.8,3251.3,1.0801]
[1736525941358,0.0075,3252.5,3251.3,1.0801]
[1736525941558,0.8347,3252.2,3251.6,0.60758323]
[1736525941882,0.398447,3252.1,3251.4,3.07557]
[1736525942179,0.0075,3252.1,3251.4,3.07557]
[1736525942552,0.0075,3252.1,3251.3,3.07565]
[1736525942973,0.0075,3252.1,3251.4,3.07551]
[1736525943242,0.0075,3252.1,3251.5,3.07548]
[1736525943849,0.0075,3252.1,3251.1,3.61047737]
[1736525944057,0.0075,3251.9,3251.1,0.61047737]
[1736525944283,0.0075,3251.7,3250.9,3.07605]
[1736525944502,0.015,3251.5,3250.5,3.07642]
[1736525944702,3.09076,3251.3,3250.0,0.7714]
[1736525944846,0.015,3251.3,3250.5,3.07639]
[1736525945475,0.015,3251.3,3250.0,0.7714]
[1736525945676,0.0225,3251.5,3250.1,3.684837]
[1736525945866,0.0075,3251.3,3250.3,3.07655]
[1736525946073,0.0075,3251.3,3250.0,3.84829]
[1736525946074,0.0225,3251.2,3250.0,3.70782261]
[1736525946284,0.0225,3250.9,3250.0,3.07684]
[1736525946454,0.0075,3250.7,3249.6,0.7947]
[1736525946807,0.0075,3250.7,3250.0,3.07689]
[1736525947148,0.7681,3250.8,3250.6,3.07633]
[1736525947348,0.7565,3251.2,3250.7,3.07618]
[1736525947548,0.7565,3251.2,3250.3,3.07663]
[1736525947549,0.7565,3251.2,3250.2,3.0]
[1736525947748,0.0075,3251.1,3250.2,3.07664]
[1736525948244,0.7565,3251.2,3250.0,0.36933404]
[1736525948447,0.7565,3251.2,3250.4,3.07649]
[1736525948683,0.7565,3251.2,3250.0,3.07684]
[1736525948875,0.0225,3251.1,3250.2,3.07669]
[1736525949276,3.0984,3251.1,3249.9,0.61645037]
[1736525949474,3.07597,3251.0,3250.0,0.03076589]
[1736525949644,0.309847,3250.9,3250.0,0.03076589]
[1736525949850,3.83236,3251.2,3250.2,3.07666]
[1736525950046,0.0075,3251.1,3250.3,3.07662]
[1736525950249,3.08339,3251.1,3250.1,3.07678]
[1736525950451,0.0075,3250.9,3250.1,3.07678]
[1736525950651,0.0075,3250.9,3250.1,0.67239934]
[1736525950863,0.7565,3251.2,3250.5,3.07643]
[1736525951292,0.0075,3251.1,3250.1,0.67239934]
[1736525951488,0.7565,3251.2,3250.2,0.03076134]
[1736525951675,0.7784,3251.9,3250.9,3.07602]
[1736525951879,0.015,3251.8,3250.9,3.07605]
[1736525952655,0.015,3251.8,3251.0,3.07594]
[1736525952852,0.015,3251.5,3250.7,0.61775513]
[1736525953350,0.015,3251.5,3250.7,3.69399513]
[1736525953690,0.0225,3251.2,3250.7,0.61775513]
[1736525953855,3.08357,3250.9,3249.9,3.07698]
[1736525954056,0.0075,3250.7,3250.0,3.07691]
[1736525954266,0.0075,3250.7,3249.8,3.07708]
[1736525954479,0.0075,3250.7,3249.8,3.69890134]
[1736525954650,0.0075,3250.7,3249.8,1.36790147]
[1736525954851,0.0075,3250.7,3249.7,6.07718]
[1736525954852,3.08383,3250.7,3249.7,6.07718]
[1736525955560,0.0075,3250.7,3249.8,3.07708]
[1736525955888,0.8088,3250.8,3249.9,0.03076675]
[1736525956089,0.8088,3250.8,3250.1,3.07682]
[1736525956249,0.8088,3250.8,3250.2,0.03076419]
[1736525956752,0.309789,3251.5,3250.2,0.34152261]
[1736525956991,0.7744,3251.5,3250.6,3.07635]
[1736525957203,0.015,3251.4,3250.5,0.6267578]
[1736525957408,0.015,3251.4,3250.6,3.07633]
[1736525957880,0.015,3251.4,3250.4,6.07651]
[1736525958075,0.0075,3251.3,3250.5,3.07644]
[1736525958275,0.0075,3251.3,3250.6,3.383974]
[1736525958475,0.0075,3251.3,3250.6,0.307644]
[1736525958676,3.08311,3251.4,3250.5,3.07637]
[1736525958886,3.08311,3251.4,3250.3,3.07661]
[1736525958887,3.07569,3251.3,3250.3,3.07661]
[1736525959087,0.8113,3251.1,3249.7,3.8308]
[1736525959294,0.015,3250.9,3249.8,3.07708]
[1736525959505,0.8248,3250.5,3249.1,5.10853891]
[1736525959671,0.8248,3250.5,3249.2,3.81863289]
[1736525959868,0.8248,3250.5,3249.7,3.07712]
[1736525960165,0.8248,3250.5,3249.6,0.62546399]
[1736525960314,0.8248,3250.5,3249.6,3.70271399]
[1736525960611,0.0075,3250.2,3249.3,0.61646894]
[1736525961019,0.8248,3250.5,3249.8,3.07705]
[1736525961318,0.8248,3250.5,3249.4,3.07749]
[1736525961515,0.0075,3250.4,3249.7,3.07714]
[1736525961675,0.0075,3250.4,3249.3,0.61646894]
[1736525961876,0.0075,3250.4,3249.6,3.07724]
[1736525962116,0.0075,3250.4,3249.3,0.61646894]
[1736525962414,0.0075,3250.4,3249.7,3.07713]
[1736525962617,0.8248,3250.5,3249.7,0.63848126]
[1736525962917,0.7728,3251.0,3250.1,3.07682]
[1736525963212,5.38,3252.0,3250.7,3.07624]
[1736525963213,0.7728,3251.6,3250.7,3.07624]
[1736525963601,0.0225,3251.5,3250.4,3.03075935]
[1736525964019,0.015,3251.3,3250.4,3.10726935]
[1736525964202,3.0834,3251.1,3250.2,6.68722273]
[1736525964406,0.0075,3250.9,3250.2,0.61053273]
[1736525964732,0.015,3250.6,3249.8,3.07708]
[1736525964914,0.015,3250.6,3249.7,3.07719]
[1736525964915,0.0075,3250.5,3249.7,3.07719]
[1736525965632,0.0075,3250.5,3249.6,3.0]
[1736525965834,0.0075,3250.5,3249.6,0.0307692]
[1736525966129,0.0075,3250.5,3249.6,3.47925922]
[1736525966336,3.09136,3250.6,3249.5,3.0]
[1736525966337,0.0075,3250.2,3249.5,3.0]
[1736525966831,0.7509,3250.4,3249.0,1.39976646]
[1736525967132,8.45585,3251.2,3249.4,6.07749]
[1736525967307,0.7652,3251.1,3250.2,3.07673]
[1736525967506,0.015,3251.0,3250.0,3.07689]
[1736525967833,0.015,3251.0,3250.1,3.10758473]
[1736525968038,0.015,3251.0,3250.2,3.07669]
[1736525968390,3.09098,3251.0,3250.0,3.07688]
[1736525968608,4.014598,3251.0,3250.0,3.07688]
[1736525968828,4.014598,3251.0,3250.0,3.68722787]